Workbook

Sheet Einleitung
F6: Kalkulationsschema für Auftragsforschung und wissenschaftliche Dienstleistung
F7: Stand: April 2025
F9: Bitte übermitteln Sie alle folgenden Blätter nur ausgedruckt mit Originalunterschrift!
B10: Liebe Nutzerin,
B11: lieber Nutzer,
B13: mit dieser Projektkalkulation werden die Vollkosten für ein Drittmittelprojekt berechnet. Diese Vorlage ist so aufgebaut, dass nur noch bestimmte Felder gefüllt werden müssen und am Ende eine komplette
B14: Vollkostenrechnung entsteht. Bitte gehen Sie nach folgender Anleitung vor.
B16: In den nachfolgenden Tabellenblättern:
B18: Personalkosten
B19: Gerätenutzungskosten
B20: Materialkosten
B21: Fremdleistungskosten
B22: sonstige direkt zurechenbare Kosten
B24: füllen Sie bitte nur die für Sie zutreffenden grün hinterlegten Felder aus.
B25: Alle anderen Felder sind gesperrt und können nicht bearbeitet werden.
B26: Im letzten Tabellenblatt
B27: Gesamtkosten
B28: werden automatisch die Vollkosten der Kalkulation errechnet.
B31: Auf jedem Tabellenblatt ist ein Beispieleintrag abgebildet, der Ihnen als Muster dienen kann. Hier exemplarisch das Beispiel aus dem Tabellenblatt Materialkosten:
B33: Beispiel
B34: eingesetzes Material z. B. Chemikalien | D34: Preis einer Einheit in Euro | E34: Einheit | F34: Menge | G34: Gesamt- preis in Euro
B39: Acetylsalicylsäure | D39: 1.5 | E39: g | F39: 200 | G39: =F39*D39 -> 300
I41: Das Feld "Gesamtpreis in Euro" berechnet sich automatisch aus den Feldern "Preis einer Einheit in Euro" und
I42: "Menge" sobald beide Felder gefüllt sind.
I44: Bitte füllen Sie die grün hinterlegten Felder gemäß Ihrer Beschriftung und Ihrem Projektbedarf aus.
B46: Alle anderen Felder bleiben entweder unverändert oder berechnen sich nach Eingabe aller wichtigen Felder von selbst. Gelb hinterlegte Felder sind Summenfelder.
B48: Sollten Sie zu den einzelnen Tabellenblättern dennoch Fragen haben, befinden sich auf allen Tabellenblättern die jeweiligen Ansprechpartner mit Kontaktinformationen.
B50: Da auf dem Tabellenblatt Gesamtkalkulation die Mehrwertsteuer hinzugerechnet wird, müssen alle eingetragenen Beträge Nettobeträge sein. Sollten Sie nur die Bruttobeträge zur Hand haben
B51: können Sie den Nettobetrag nach folgender Formel berechnen:
B52: Bruttobetrag | C52: geteilt durch | D52: 119 | E52: mal | F52: 100 | G52: ist gleich | H52: Nettobetrag
B53: 119 | C53: / | D53: 119 | E53: * | F53: 100 | G53: = | H53: 100 | I53: Beispiel 1
B54: 272.5 | C54: / | D54: 119 | E54: * | F54: 100 | G54: = | H54: =B54/119*100 -> 228.9915966 | I54: Beispiel 2
B57: Hinweis zu Zahlungsmodalitäten:
B59: Nach bayerischer Haushaltsordnung soll die Universität Bayreuth bei ihren wirtschaftlichen Projekten nicht in Vorleistung gehen.
B60: Daher sollen Zahlungen weitestgehends vor Beginn der Tätigkeit erfolgen.
B61: Nur in begründeten Einzelfällen ist ggfs. eine andere Regelung möglich.

Sheet Daten zum Auftrag
A1: Grau markierte Felder sind vom Antragsteller auszufüllen!
A2: Daten zum Auftrag / zur Kalkulation - Auftragsforschung | W2: Partner EU (ohne USt)
W3: Partner Hochschule Bayern (ohne Ust)
A4: Beauftragender Partner: | W4: Partner Drittland (ohne Ust)
E5: (Unternehmen / Firma): Bitte vollständige Anschrift angeben! | W5: Partner Inland (mit USt) 19%
A6: PARTNERLAND / USt | E6: Partner Inland (mit USt) 19% | I6: Å Bitte auswählen! | W6: Partner EU (mit USt) 19%
W7: Partner Drittland (mit USt) 19%
A8: Unternehmer-Nr.:/USt- Ident-Nr.: | W8: Innenleistung Lehrstuhl/Einrichtung
E9: (Nur bei Partnern aus EU oder Drittland)
A10: Lehrstuhl/Einrichtung
A12: Ansprechpartner/in Lehrstuhl: | W12: Partner Drittland (ohne Ust)
A14: Projektbezeichnung
E16: (genaue Bezeichnung des Auftrags)
A17: Anlagen immer mit einzureichen: | E17: * | G17: Erklärung zur steuerlichen Behandlung
E18: * | G18: Drittmittelanzeige
E19: * | G19: Erklärung zum Forschungs- / Drittmittelvorhaben
A21: I. | B21: Angaben des ausführenden Lehrstuhls/Einrichtung zum Projekt
B23: Kalkulation zum Angebot/Vertrag vom:
B25: Kalkulation zur Direktbeauftragung vom:
A28: Angabe der Kostenstelle für Materialpauschale:
A30: Angabe der Restmittelkostenstelle:
A32: Hier nur ankreuzen wenn Projektarbeiten zum Zeitpunkt der Einreichung der Kalkulationsunterlagen bereits beendet waren (nur bei Direktbeauftragung von Kleinprojekten über Sammelkostenstellen möglich):
B33: Die Arbeiten sind vollständig ausgeführt. Die Rechnung kann gestellt werden.
B34: Die in der Kalkulation angegebenen Stunden für Stammpersonal und Gerätenutzung sind wie kalkuliert angefallen
B35: Der Partner hat für die Direktbeauftragung die AGB der Universität Bayreuth akzeptiert. (Nachweis am Lehrstuhl vorhalten)
B36: Bayreuth, den
E37: Unterschrift Projektverantwortliche/r | I37: Name in Druckbuchstaben
A38: II. | B38: An das Referat II 1.1.5 (vom Referat auszufüllen)
B40: II.1 Haushaltsrechtliche Prüfung
B41: mit der Bitte um rechnerische Prüfung des Auftrages / Angebotes hinsichtlich der
B43: Kalkulation (Vollkosten) ->evtl. ÄNDERUNGEN SIEHE BEIBLATT
B45: Festlegung des "Overhead-Anteils" für allgemeine Kosten (z. B. Arbeitsplatz- und Gemeinkosten,
B46: Personalaufwand in Infrastruktureinrichtungen der Universität etc.):
B47: =IF(E6="Innenleistung Lehrstuhl/Einrichtung",0%,20%) -> 0.2 | C47: des Rechnungsbetrages
B49: Projektkostenstelle: | G49: VM-Nummer:
B52: II.2 Steuerrechtliche Prüfung
B54: Es besteht UMSATZSTEUERPFLICHT | G54: Ja | I54: Nein
B55: zu berücksichtigender Steuersatz: | G55: 0.19 | H55: _____
B57: Bei EU-Partnern, Ident.-Nr.: angegeben: | E57: ja | G57: geprüft und ok: | I57: ja
B59: Bei Partnern außerhalb der EU, Unternehmer-Nr. | G59: angegeben: | I59: ja
B61: Die Einordnung in BgA (AF/WD) erfolgt nach Angabe des Lehrstuhls gem. steuerlicher Bescheinigung
B63: Bayreuth, den
J64: (Unterschrift Sachbearbeiter/in)

Sheet vereinfachte Gesamtkalkulat
A1: Kalkulation von Auftragsforschungen
A2: nur für Kleinprojekte bis 10.000 € Netto-Angebotspreis | R2: A3 | Y2: 0
R3: A4 | Y3: 0
A4: Auftraggeber / Firma | R4: A5 | Y4: Partner EU (ohne USt)
A5: Ansprechpartner | R5: A6 | Y5: Partner Hochschule Bayern (ohne Ust)
A6: Thema | R6: A6+Z | Y6: Partner Drittland (ohne Ust)
A7: Mitarbeiter | R7: A7 | Y7: Partner Inland (mit USt) 16% | Z7: 0.16
F8: ERLÄUTERUNGEN: | R8: A8 | Y8: Partner EU (mit USt) 16% | Z8: 0.16
A9: Einsatz von Stammpersonal | B9: Dauer | C9: Preis | D9: Kosten | E9: 873/874 | R9: A9 | Y9: Partner Drittland (mit USt) 16% | Z9: 0.16
C10: =IF(ISERROR(VLOOKUP(A10,Code!$A$8:$F$59,6,0)),"",VLOOKUP(A10,Code!$A$8:$F$59,6,0)) ->  | D10: =IF(ISERROR(C10*B10),"",C10*B10) ->  | F10: Arbeitsplatzkosten und Grundausstattung | R10: A9+Z | Y10: Partner Inland (mit USt) 19% | Z10: 0.19
C11: =IF(ISERROR(VLOOKUP(A11,Code!$A$8:$F$59,6,0)),"",VLOOKUP(A11,Code!$A$8:$F$59,6,0)) ->  | D11: =IF(ISERROR(C11*B11),"",C11*B11) ->  | R11: A10 | Y11: Partner EU (mit Ust) 19% | Z11: 0.19
C12: =IF(ISERROR(VLOOKUP(A12,Code!$A$8:$F$59,6,0)),"",VLOOKUP(A12,Code!$A$8:$F$59,6,0)) ->  | D12: =IF(ISERROR(C12*B12),"",C12*B12) ->  | R12: A10+Z | Y12: Partner Drittland (mit USt) 19% | Z12: 0.19
C13: =IF(ISERROR(VLOOKUP(A13,Code!$A$8:$F$59,6,0)),"",VLOOKUP(A13,Code!$A$8:$F$59,6,0)) ->  | D13: =IF(ISERROR(C13*B13),"",C13*B13) ->  | R13: A11 | Y13: Innenleistung Lehrstuhl/Einrichtung | Z13: 0
A14: Summe | D14: =SUM(D10:D13) -> 0 | R14: A12
R15: A13
A16: Personal Einstellungen (direkt auf Projekt) | B16: Dauer | C16: Preis | D16: Kosten | E16: 812/822 | R16: A13+Z
C17: =IF(ISERROR(VLOOKUP(A17,Code!$A$8:$F$59,6,0)),"",VLOOKUP(A17,Code!$A$8:$F$59,6,0)) ->  | D17: =IF(ISERROR(C17*B17),"",C17*B17) ->  | R17: A14
C18: =IF(ISERROR(VLOOKUP(A18,Code!$A$8:$F$59,6,0)),"",VLOOKUP(A18,Code!$A$8:$F$59,6,0)) ->  | D18: =IF(ISERROR(C18*B18),"",C18*B18) ->  | R18: A15
C19: =IF(ISERROR(VLOOKUP(A19,Code!$A$8:$F$59,6,0)),"",VLOOKUP(A19,Code!$A$8:$F$59,6,0)) ->  | D19: =IF(ISERROR(C19*B19),"",C19*B19) ->  | R19: A16
A20: Summe | D20: =SUM(D17:D19) -> 0 | R20: A16+Z
R21: A13 Akad.Rat
A22: Einsatz von Geräten | B22: Dauer | C22: Preis | D22: Kosten | E22: 950 | R22: W1
D23: =C23*B23 -> 0 | F23: Großgeräte und Sondermaschinen müssen einzeln kalkuliert | R23: W2
D24: 0 | F24: werden | R24: W3
D25: 0 | R25: C1 kw
D26: 0 | R26: C2 kw
D27: 0 | R27: C3 kw
D28: 0 | R28: C4 kw
A29: Summe | D29: =SUM(D23:D28) -> 0 | N29: =L29*M29 -> 0 | R29: E1
R30: E2
A31: Einsatz von Material | B31: Menge | C31: Preis | D31: Kosten | E31: 943/944 | R31: E2Ü
D32: =C32*B32 -> 0 | F32: Material ist grundsätzlich einzeln zu bewerten, wenn Erfahrungs- | R32: E3
D33: 0 | F33: werte vorliegen kann auch eine "Materialpauschale" | R33: E4
D34: 0 | F34: bis maximal 350,00 EUR zum Ansatz kommen | R34: E5
D35: 0 | R35: E6
D36: 0 | R36: E7
D37: 0 | R37: E8
D38: 0 | R38: E9
A39: Summe | D39: =SUM(D32:D38) -> 0 | R39: E10
R40: E11
A41: Fremdleistungen | B41: Menge | C41: Preis | D41: Kosten | E41: 933 | R41: E12
D42: =C42*B42 -> 0 | R42: E13
D43: =C43*B43 -> 0 | R43: E13Ü
A44: Summe | D44: =SUM(D42:D43) -> 0 | R44: E14
R45: E15
A46: Sonstiges | B46: Menge | C46: Preis | D46: Kosten | E46: 945 | R46: E15Ü
D47: =C47*B47 -> 0 | R47: SHK student. Hilfskräfte
D48: =C48*B48 -> 0 | F48: Sonstige dem Auftrag direkt zurechenbare Kosten: | R48: nwHK student. Hilfskräfte
A49: Summe | D49: =SUM(D47:D48) -> 0 | F49: Forschungs- und Lehrzulage, Reisekosten, Raummiete etc. | R49: SHKBachelor student. Hilfskräfte
A51: å Zwischensumme | D51: =D14+D20+D29+D39+D44+D49 -> 0
A53: Kalkulation von Auftragsforschungen
A54: nur für Kleinprojekte bis 10.000 € Netto-Angebotspreis
F55: Bitte Eintrag mit "Ja" bestätigen und generell Preissteigerungen kalkulieren.
C56: hier "Ja" eintragen
A57: å Zwischensumme | D57: =D14+D20+D29+D39+D44+D49 -> 0 | E57: 960
A58: Preissteigerungen während der Laufzeit inklusive Tariferhöhungen, bitte mit Eintrag "Ja" bestätigen | D58: =IF(C58="Ja",D57*0.05,0) -> 0
A60: å Selbstkosten | D60: =D58+D57 -> 0
A62: Gewinn in Prozent | D62: =D60*C62 -> 0 | E62: 960 | F62: Empfohlener Gewinn 3 % - 5 % Gewinne über 10 % müssen begründet werden
A63: Nettoüberschuss vorweg verfügbar | B63: 0.2 | C63: =D62*B63 -> 0
A64: Gewinn in EURO (alternativ) | D64: =C64 -> 0 | E64: 955
A65: Nettoüberschuss vorweg verfügbar | B65: 0.2 | C65: =C64*B65 -> 0
A67: Nettosumme vor Overhead | D67: =D62+D60+D64 -> 0
A68: Overhead | B68: im Hundert | C68: ='Daten zum Auftrag'!B47 -> 0.2 | D68: =(D67/(1-C68))*C68 -> 0 | E68: 999
A70: Gesamt-Nettosumme | D70: =D67+D68 -> 0
A72: ='Daten zum Auftrag'!E6 -> Partner Inland (mit USt) 19% | B72: =VLOOKUP(A72,$Y$4:$Z$13,2,FALSE) -> 0.19 | C72: =B72 -> 0.19 | D72: =D70*C72 -> 0
A74: Brutto-Angebotspreis des Auftrags | D74: =D70+D72 -> 0
A82: Auf Dienstpflicht wird bestätigt:
A84: Mir ist bekannt, dass nach dem EU-Gemeinschaftsrahmen für staatliche Beihilfen für Forschung,
A85: Entwicklung und Innovation (Beihilferahmen) zur Vermeidung von Wettbewerbsverzerrungen eine
A86: Trennung von wirtschaftlichen und nichtwirtschaftlichen Tätigkeiten erforderlich ist und insoweit eine
A87: Quersubventionierung von wirtschaftlicher Tätigkeit aus staatlichen Haushaltsmitteln unzulässig ist.
A89: Mir ist bekannt, dass nach bayerischer Haushaltsdordnung, die Universität Bayreuth nicht in
A90: Vorleistung gehen soll.
A91: Daher sollen Zahlungen weitestgehends vor Beginn der Tätigkeit erfolgen.
A92: Nur in begründeten Einzelfällen ist ggfs. eine andere Regelung möglich
A94: Das obige Projekt / die obige Kalkulation trägt dem Rechnung und wurde deshalb im Zuge der
A95: Angebotserstellung nach einer Vollkostenkalkulation bzw. nach marktüblichen Preisen kalkuliert.
A97: Ferner wird sichergestellt, dass alle Ausgaben für das Projekt nachweisbar / spezifizierbar sind.
A98: Entsprechende Aufzeichnungen werden geführt und für eine evtl. Prüfung durch die EU nach den
A99: einschlägigen Aufbewahrungsbestimmungen aufbewahrt.
A102: ________________________________ | C102: ___________________________________
A103: Datum, Unterschrift des Projektleiters | C103: Datum, Unterschrift des Lehrstuhlinhabers
C104: (falls nicht gleichzeitig Projektleiter)
A124: ,

Sheet Code (hidden)
A1: A. Auftragsspezifische Personalkosten
A2: Personalvollkosten ab 1. Dezember 2022
A3: Nur grün hinterlegte Felder ausfüllen !
A4: Beamte | C4: Angestellte | E4: Personalvollkosten_Beamte/Angestellte
A5: BesGr | B5: Stufe | C5: Entgelt-gruppe | D5: Entgeltgruppe (Übergeleiteter Bestand) | E5: Jahr (in Euro) | F5: Stunde (in Euro)
A8: A3 | B8: 8* | C8: E2, E2Ü, E1 | D8: E2Ü | E8: 73359 | F8: 44.73
A9: A4 | B9: 8* | E9: 76080 | F9: 46.4
A10: A5 | B10: Endstufe | C10: E3 | D10: E3 | E10: 76740 | F10: 46.8
A11: A6 | C11: E5, E4 | E11: 77613 | F11: 47.32
A12: A6+Z | B12: Endstufe | E12: 80709 | F12: 49.22
A13: A7 | B13: 7 | C13: E7, E6 | D13: E7, E6 | E13: 81088 | F13: 49.44
A14: A8 | B14: Endstufe | C14: E8 | D14: E8 | E14: 88155 | F14: 53.76
A15: A9 | C15: E9 | D15: E9 | E15: 91031 | F15: 55.24
A16: A9+Z | B16: Endstufe | E16: 101400 | F16: 61.53
A17: A10 | B17: 6 | C17: E10 | D17: E10 | E17: 97265 | F17: 59.02
A18: A10+Z | B18: Endstufe | E18: 103812 | F18: 63
A19: A11 | B19: 7 | C19: E11 | D19: E11 | E19: 109049 | F19: 66.17
A20: A12 | B20: Endstufe | C20: E12 | D20: E12 | E20: 123293 | F20: 74.82
A21: A13 | C21: E13, E13Ü | D21: E13 | E21: 129904 | F21: 76.96
A22: A13+Z | B22: Endstufe | E22: 142730 | F22: 84.55
A23: A14 | B23: 7 | C23: E14 | D23: E14, E13Ü | E23: 142058 | F23: 84.16
A24: A15 | B24: 8 | C24: E15 | E24: 158734 | F24: 94.04
A25: A16 | B25: Endstufe | C25: E15Ü | E25: 180834 | F25: 107.13
A26: A16+Z | B26: Endstufe | E26: 186267 | F26: 110.34
A27: Angestellte | C27: Angestellte | E27: Angestellte
A28: E1 | B28: 8* | E28: 70407 | F28: 42.93
A29: E2 | E29: 70407 | F29: 42.93
A30: E2Ü | E30: 70407 | F30: 42.93
A31: E3 | B31: Endstufe | E31: 73876 | F31: 45.05
A32: E4 | E32: 74664 | F32: 45.53
A33: E5 | E33: 74664 | F33: 45.53
A34: E6 | E34: 78152 | F34: 47.66
A35: E7 | B35: 7 | E35: 78152 | F35: 47.66
A36: E8 | B36: Endstufe | E36: 85291 | F36: 52.01
A37: E9 | E37: 88247 | F37: 53.55
A38: E10 | B38: 5 | E38: 94654 | F38: 57.43
A39: E11 | B39: 7 | E39: 106699 | F39: 64.74
A40: E12 | B40: Endstufe | E40: 120945 | F40: 73.39
A41: E13 | E41: 127302 | F41: 75.41
A42: E13Ü | E42: 127302 | F42: 75.41
A43: E14 | B43: 7 | E43: 140093 | F43: 82.99
A44: E15 | B44: 8 | E44: 156149 | F44: 92.51
A45: E15Ü | B45: Endstufe | E45: 178249 | F45: 105.6
A46: Beamte | C46: Beamte | E46: Beamte
A47: A13 Akad.Rat | B47: Akad. Rat a. Z./Stufe 6 | E47: 121293 | F47: 71.85
A48: W1 | E48: 121182 | F48: 71.79
A49: W2 | B49: 2 | C49: ohne Leistungs- bezüge | E49: 152701 | F49: 90.47
A50: W3 | B50: 2 | E50: 177315 | F50: 105.04
A52: C1 kw | B52: 13 | E52: 136110 | F52: 80.64
A53: C2 kw | B53: Endstufe | E53: 160835 | F53: 95.28
A54: C3 kw | B54: Endstufe | E54: 177595 | F54: 105.21
A55: C4 kw | B55: Endstufe | E55: 247950 | F55: 146.89
A56: Studentische Hilfskräfte | E56: Studentische Hilfskräfte
A57: SHK student. Hilfskräfte | F57: 22.39
A58: nwHK student. Hilfskräfte | F58: 22.39
A59: SHKBachelor student. Hilfskräfte | F59: 24.08

Sheet Personalkosten
A1: A. Auftragsspezifische Personalkosten
A2: Personalvollkosten ab Dezember 2022 | P2: ANMERKUNGEN:
A3: Nur grün hinterlegte Felder ausfüllen !
A4: Beamte | C4: Angestellte | E4: Personaldurchschnittskosten | G4: Personalvollkosten | I4: Std. | J4: Beamte Stammpersonal = vorhandenes Lehrstuhlpersonal, das über eine Haushaltsstelle finanziert wird | K4: Std. | L4: Angestellte Stammpersonal = vorhandenes Lehrstuhlpersonal, das über eine Haushaltsstelle finanziert wird | M4: Std. | N4: Direkteinstellungen= Personal, welches eigens für die Durchführung des Vorhabens auf das Projekt eingestellt wird | P4: Die Arbeitsplatzkosten und die Grundausstattung sind bei den Personalvollkosten mit eingerechnet.
A5: BesGr | B5: Stufe | C5: Entgelt-gruppe | D5: Entgelt-gruppe (Über-geleiteter Bestand) | E5: Jahr (in Euro) | F5: Stunde (in Euro) | G5: Jahr (in Euro) | H5: Stunde (in Euro)
A8: A3 | B8: Endstufe | C8: E2, E2Ü, E1 | D8: E2Ü | G8: =Code!$E8 -> 73359 | H8: =VLOOKUP(A8,Code!$A$5:$F$26,6,0) -> 44.73 | J8: =H8*I8 -> 0 | L8: =K8*H8 -> 0 | N8: =H8*M8 -> 0 | P8: Stunden pro Jahr | S8: 1720
A9: A4 | B9: Endstufe | G9: =Code!$E9 -> 76080 | H9: =VLOOKUP(A9,Code!$A$5:$F$26,6,0) -> 46.4 | J9: =H9*I9 -> 0 | L9: =K9*H9 -> 0 | N9: =H9*M9 -> 0 | P9: Stunden pro Monat | S9: =S8/12 -> 143.3333333
A10: A5 | B10: Endstufe | C10: E3 | D10: E3 | G10: =Code!$E10 -> 76740 | H10: =VLOOKUP(A10,Code!$A$5:$F$26,6,0) -> 46.8 | J10: =H10*I10 -> 0 | L10: 0 | N10: 0 | P10: Stunden pro Tag | S10: =S9/19 -> 7.543859649
A11: A6 | C11: E5, E4 | G11: =Code!$E11 -> 77613 | H11: =VLOOKUP(A11,Code!$A$5:$F$26,6,0) -> 47.32 | J11: 0 | L11: =K11*H11 -> 0 | N11: 0
A12: A6+Z | B12: Endstufe | G12: =Code!$E12 -> 80709 | H12: =VLOOKUP(A12,Code!$A$5:$F$26,6,0) -> 49.22 | J12: 0 | L12: 0 | N12: 0
A13: A7 | B13: 8 | C13: E7, E6 | D13: E7, E6 | G13: =Code!$E13 -> 81088 | H13: =VLOOKUP(A13,Code!$A$5:$F$26,6,0) -> 49.44 | J13: 0 | L13: 0 | N13: 0 | P13: Forschungs- und Lehrzulage
A14: A8 | B14: Endstufe | C14: E8 | D14: E8 | G14: =Code!$E14 -> 88155 | H14: =VLOOKUP(A14,Code!$A$5:$F$26,6,0) -> 53.76 | J14: 0 | L14: 0 | N14: =H14*M14 -> 0 | P14: Professoren und Professorinnen, die im Hauptamt Mittel privater Dritter für Forschungs- und Lehrvorhaben der Hochschule einwerben und diese Vorhaben durchführen, kann für die Dauer des Drittmittelflusses aus diesen Mitteln eine nicht ruhegeltfähige Zulage gewährt werden, soweit der Drittmittelgeber mit der Vergabe einverstanden ist. Eine Zulage darf nur gewährt werden, soweit neben den übrigen Kosten des Forschungs- und Lehrvorhabens auch die für die Gewährung der Forschungs- und Lehrzulage aufzuwendenden Beträge durch die Drittmittel gedeckt sind. Forschungs- und Lehrzulagen dürfen innerhalb eines Kalenderjahres insgesamt 100 v. H. des Jahresgrundgehalts des Professors oder der Professorin nicht überschreiten. Die Lehrtätigkeit im Rahmen eines Lehrvorhabens, für das eine Lehrzulage gewährt wird, ist auf die jeweils obliegende Lehrverpflichtung nicht anzurechnen. Anm.: Die BayHLeistBV ist nur auf Professoren in der W-Besoldung anwendbar.
A15: A9 | C15: E9 | D15: E9 | G15: =Code!$E15 -> 91031 | H15: =VLOOKUP(A15,Code!$A$5:$F$26,6,0) -> 55.24 | J15: 0 | L15: 0 | N15: 0
A16: A9+Z | B16: Endstufe | G16: =Code!$E16 -> 101400 | H16: =VLOOKUP(A16,Code!$A$5:$F$26,6,0) -> 61.53 | J16: 0 | L16: 0 | N16: 0
A17: A10 | B17: 6 | C17: E10 | D17: E10 | G17: =Code!$E17 -> 97265 | H17: =VLOOKUP(A17,Code!$A$5:$F$26,6,0) -> 59.02 | J17: 0 | L17: 0 | N17: 0
A18: A10+Z | B18: Endstufe | G18: =Code!$E18 -> 103812 | H18: =VLOOKUP(A18,Code!$A$5:$F$26,6,0) -> 63 | J18: 0 | L18: 0 | N18: 0
A19: A11 | B19: 8 | C19: E11 | D19: E11 | G19: =Code!$E19 -> 109049 | H19: =VLOOKUP(A19,Code!$A$5:$F$26,6,0) -> 66.17 | J19: =H19*I19 -> 0 | L19: 0 | N19: 0
A20: A12 | B20: Endstufe | C20: E12 | D20: E12 | G20: =Code!$E20 -> 123293 | H20: =VLOOKUP(A20,Code!$A$5:$F$26,6,0) -> 74.82 | J20: 0 | L20: 0 | N20: 0
A21: A13 | C21: E13, E13Ü | D21: E13 | G21: =Code!$E21 -> 129904 | H21: =VLOOKUP(A21,Code!$A$5:$F$26,6,0) -> 76.96 | J21: 0 | L21: 0 | N21: 0
A22: A13+Z | B22: Endstufe | G22: =Code!$E22 -> 142730 | H22: =VLOOKUP(A22,Code!$A$5:$F$26,6,0) -> 84.55 | J22: 0 | L22: 0 | N22: 0
A23: A14 | B23: 7 | C23: E14 | D23: E14, E13Ü | G23: =Code!$E23 -> 142058 | H23: =VLOOKUP(A23,Code!$A$5:$F$26,6,0) -> 84.16 | J23: 0 | L23: 0 | N23: 0
A24: A15 | B24: 8 | C24: E15 | G24: =Code!$E24 -> 158734 | H24: =VLOOKUP(A24,Code!$A$5:$F$26,6,0) -> 94.04 | J24: 0 | L24: 0 | N24: 0
A25: A16 | B25: Endstufe | C25: E15Ü | G25: =Code!$E25 -> 180834 | H25: =VLOOKUP(A25,Code!$A$5:$F$26,6,0) -> 107.13 | J25: 0 | L25: 0 | N25: 0
A26: A16+Z | B26: Endstufe | G26: =Code!$E26 -> 186267 | H26: =VLOOKUP(A26,Code!$A$5:$F$26,6,0) -> 110.34 | J26: 0 | L26: 0 | N26: 0
A28: Sonderfall: Kalkulierte Personalkosten | I28: Betrag in Personalabteilung zu erfragen und zu bestätigen
A29: zuzüglich 30% arbeitsplatzbezogene Gemeinkosten | N29: =N28*0.3 -> 0
A32: A13 | B32: Akad. Rat a. Z./Stufe 6 | G32: =Code!E47 -> 121293 | H32: =Code!F47 -> 71.85 | J32: =H32*I32 -> 0 | N32: =H32*M32 -> 0
A33: W1 | G33: =Code!E48 -> 121182 | H33: =Code!F48 -> 71.79 | J33: =H33*I33 -> 0 | N33: =H33*M33 -> 0
A34: W2 | B34: 2 | C34: ohne Leistungs- bezüge | G34: =Code!E49 -> 152701 | H34: =Code!F49 -> 90.47 | J34: =H34*I34 -> 0 | N34: =H34*M34 -> 0
A35: W3 | B35: 2 | G35: =Code!E50 -> 177315 | H35: =Code!F50 -> 105.04 | J35: =H35*I35 -> 0 | N35: =H35*M35 -> 0
A37: C1 kw | B37: 13 | G37: =Code!E52 -> 136110 | H37: =Code!F52 -> 80.64 | J37: 0 | N37: 0
A38: C2 kw | B38: Endstufe | G38: =Code!E53 -> 160835 | H38: =Code!F53 -> 95.28 | J38: 0 | N38: 0
A39: C3 kw | B39: Endstufe | G39: =Code!E54 -> 177595 | H39: =Code!F54 -> 105.21 | J39: 0 | N39: 0
A40: C4 kw | B40: Endstufe | G40: =Code!E55 -> 247950 | H40: =Code!F55 -> 146.89 | J40: 0 | N40: 0
A42: Studentische Hilfskräfte
A43: SHK student. Hilfskräfte | H43: =Code!F57 -> 22.39 | L43: =K43*H43 -> 0 | N43: =M43*H43 -> 0 | P43: SHK | Q43: studentische Hilfskraft
A44: nwHK student. Hilfskräfte | H44: =Code!F58 -> 22.39 | L44: =K44*H44 -> 0 | N44: =M44*H44 -> 0 | P44: nwHK | Q44: nicht wissenschaftliche Hilfskraft
A45: SHKBachelor student. Hilfskräfte | H45: =Code!F59 -> 24.08 | L45: =K45*H45 -> 0 | N45: =M45*H45 -> 0 | P45: SHKBachelor | Q45: studentische Hilfskraft Bachelor
P46: Die Stundenangaben bei der Gruppe studentische | T46: Beispiel:
P47: Hilfskräfte sind nicht mit der oben genannten Zahl | T47: Stunden pro Monat | V47: 39.5
P48: identisch. Bitte geben Sie bei den studentischen | T48: Stunden pro Jahr (=39,5x12) | V48: =V47*12 -> 474
J49: Stammpers.Beamte | L49: Stammpers. Angest. | N49: Direkteinstellungen | P49: Hilfskräften die genaue Stundenzahl ein, z. B. 39,5 | T49: Stunden pro Woche (=39,5/4) | V49: =V47/4 -> 9.875
A50: Gesamt | C50: in Euro | J50: =SUM(J8:J45) -> 0 | L50: =SUM(L8:L45) -> 0 | N50: =SUM(N8:N45) -> 0 | P50: Stunden für die Monatsarbeitszeit. Für die Jahres-
P51: arbeitszeit dies mal 12, für Wochen geteilt durch 4.
A54: Forschungs- und Lehrzulage | P54: Bitte alle Tabellenblätter ausfüllen:
P55: Personalkosten
P56: Gerätenutzungskosten
P57: Materialkosten
P58: Fremdleistungskosten
P59: sonstige direkt zurechenbare Kosten
P60: Gesamtkosten

Sheet Tabelle4 (hidden)

Sheet Gerätenutzungskosten
A1: Gerätenutzungskosten | K1: ANMERKUNGEN:
A2: Nur grün hinterlegte Felder ausfüllen ! | K2: Die (Netto-)Vollkosten pro Stunde sind bei Herrn Grunert anzufragen.
A3: Maschinen | F3: Vollkosten | H3: Stunden | I3: Anlagekosten
E4: Inventar- nummer | F4: pro Stunde in Euro | I4: in Euro (netto)
K6: Beispiel
A7: Maschine 1 | F7: 0 | I7: =H7*F7 -> 0 | K7: Vollkosten | L7: Stunden | M7: Anlagenkosten (in Euro)
A8: Maschine 2 | F8: 0 | I8: 0 | K8: 25 | L8: 40.1 | M8: =L8*K8 -> 1002.5
A9: Maschine 3 | F9: 0 | I9: 0 | K9: Die Zahl 40,1 bedeutet z. B. eine Wochenbetriebszeit von 40,06 Stunden, wenn Sie für eine Tätigkeit 90 Minuten brauchen, tragen Sie bei Stunden bitte 1,5 ein.
A10: Maschine 4 | F10: 0 | I10: 0
A11: Maschine 5 | F11: 0 | I11: 0
A12: Maschine 6 | F12: 0 | I12: 0
A13: Maschine 7 | F13: 0 | I13: 0
A14: Maschine 8 | F14: 0 | I14: 0 | K14: In den Gerätenutzungskosten sind bereits mit eingerechnet: Abschreibung, kalkulatorische Zinsen, tatsächliche Reparaturkosten, Raumkosten nach beanspruchter Fläche, Betriebsstoffe (Gas, Helium, Stickstoffe, Öl, etc.), Verbrauchsmaterial, Wartungs- und Gemeinkosten
A15: Maschine 9 | F15: 0 | I15: 0
A16: Maschine 10 | F16: 0 | I16: 0
A17: Maschine 11 | F17: 0 | I17: 0
A18: Maschine 12 | F18: 0 | I18: 0
A19: Maschine 13 | F19: 0 | I19: 0
A20: Maschine 14 | F20: 0 | I20: 0
A21: Maschine 15 | F21: 0 | I21: 0
A22: Maschine 16 | F22: 0 | I22: 0
A23: Maschine 17 | F23: 0 | I23: 0 | K23: Rückfragen zu diesem Tabellenblatt bitte beim Referat Finanzcontrolling: ZUV Tel.: 0921 / 55-5348 Fax: 0921 / 55 84 5348, E-Mail: finanzcontrolling@uni-bayreuth.de
A24: Maschine 18 | F24: 0 | I24: 0
A25: Gerätenutzungskosten Gesamt | F25: in Euro | I25: =SUM(I7:I24) -> 0
K29: Bitte alle Tabellenblätter ausfüllen:
K30: Personalkosten
K31: Gerätenutzungskosten
K32: Materialkosten
K33: Fremdleistungskosten
K34: sonstige direkt zurechenbare Kosten
K35: Gesamtkosten

Sheet Materialkosten
A1: Materialkosten | I1: ANMERKUNGEN:
A2: Nur grün hinterlegte Felder ausfüllen !
A3: eingesetztes Material | B3: Verbrauchsmaterial, Chemikalien, etc. | D3: Preis einer Einheit in Euro (netto) | E3: Einheit, z. B. kg, l, etc. | F3: Menge | G3: Gesamt- preis in Euro (netto) | I3: Material ist einzeln zu kalkulieren, kann aber auch pauschal
I4: angesetzt werden z.B. "Chemikalien insgesamt"
I7: Beispiel
A8: Material 1 | D8: 0 | G8: =D8*F8 -> 0 | I8: eingesetzes Material z. B. Chemikalien | K8: Preis einer Einheit in Euro | L8: Einheit | M8: Menge | N8: Gesamt- preis in Euro
A9: Material 2 | D9: 0 | G9: 0
A10: Material 3 | D10: 0 | G10: 0
A11: Material 4 | D11: 0 | G11: 0
A12: Material 5 | D12: 0 | G12: 0
A13: Material 6 | D13: 0 | G13: 0 | I13: Chemikalien | K13: 7.5 | L13: kg | M13: 200 | N13: =M13*K13 -> 1500
A14: Material 7 | D14: 0 | G14: 0
A15: Material 8 | D15: 0 | G15: 0
A16: Material 9 | D16: 0 | G16: 0 | I16: l | J16: Liter
A17: Material 10 | D17: 0 | G17: 0 | I17: kg | J17: Kilogramm
A18: Material 11 | D18: 0 | G18: 0 | I18: g | J18: Gramm
A19: Material 12 | D19: 0 | G19: 0
A20: Material 13 | D20: 0 | G20: 0
A21: Material 14 | D21: 0 | G21: 0 | I21: Bitte alle Tabellenblätter ausfüllen:
A22: Material 15 | D22: 0 | G22: 0 | I22: Personalkosten
A23: Material 16 | D23: 0 | G23: 0 | I23: Gerätenutzungskosten
A24: Material 17 | D24: 0 | G24: 0 | I24: Materialkosten
A25: Material 18 | D25: 0 | G25: 0 | I25: Fremdleistungskosten
A26: Material 19 | D26: 0 | G26: 0 | I26: sonstige direkt zurechenbare Kosten
A27: Material 20 | D27: 0 | G27: 0 | I27: Gesamtkosten
A28: Materialkosten Gesamt | E28: in Euro | G28: =SUM(G8:G27) -> 0
A31: Pauschale Kleinmaterial (bis 350,00 EUR) | E31: in Euro | G31: 0

Sheet Fremdleistungskosten
A1: Fremdleistungen | I1: ANMERKUNGEN:
A2: Nur grün hinterlegte Felder ausfüllen !
A3: Fremdleistung | B3: Vergabe von Aufträgen an Universitätsfremde, z. B. Gutachten, TÜV, Messungen, etc. | D3: Preis einer Einheit in Euro (netto) | E3: Einheit, z. B. Std. | F3: Menge | G3: Gesamtpreis in Euro (netto) | I3: Weitere Fremdleistungen sind
I4: z. B. Reparaturen, Wartungsarbeiten, etc.
I7: Beispiel
A8: Fremdleistung 1 | D8: 0 | G8: =F8*D8 -> 0 | I8: Fremdleistung | K8: Preis einer Einheit in Euro | L8: Menge | M8: Gesamt- preis in Euro
A9: Fremdleistung 2 | D9: 0 | G9: 0
A10: Fremdleistung 3 | D10: 0 | G10: 0
A11: Fremdleistung 4 | D11: 0 | G11: 0
A12: Fremdleistung 5 | D12: 0 | G12: 0
A13: Fremdleistung 6 | D13: 0 | G13: 0 | I13: TÜV-Gutachten | K13: 100 | L13: 2 | M13: =L13*K13 -> 200
A14: Fremdleistung 7 | D14: 0 | G14: 0
A15: Fremdleistung 8 | D15: 0 | G15: 0
A16: Fremdleistung 9 | D16: 0 | G16: 0 | I16: Bitte alle Tabellenblätter ausfüllen:
A17: Fremdleistung 10 | D17: 0 | G17: 0 | I17: Personalkosten
A18: Fremdleistung 11 | D18: 0 | G18: 0 | I18: Gerätenutzungskosten
A19: Fremdleistung 12 | D19: 0 | G19: 0 | I19: Materialkosten
A20: Fremdleistung 13 | D20: 0 | G20: 0 | I20: Fremdleistungskosten
A21: Fremdleistung 14 | D21: 0 | G21: 0 | I21: sonstige direkt zurechenbare Kosten
A22: Fremdleistung 15 | D22: 0 | G22: 0 | I22: Gesamtkosten
A23: Fremdleistung 16 | D23: 0 | G23: 0
A24: Fremdleistung 17 | D24: 0 | G24: 0
A25: Fremdleistung 18 | D25: 0 | G25: 0
A26: Fremdleistung 19 | D26: 0 | G26: 0
A27: Fremdleistung 20 | D27: 0 | G27: 0
A28: Fremdleistungen Gesamt | E28: in Euro | G28: =SUM(G8:G27) -> 0

Sheet sonstige direkt zurechenbare Ko
A1: sonstige direkt zurechenbare Kosten | H1: ANMERKUNGEN:
A2: Nur grün hinterlegte Felder ausfüllen !
A3: sonstige dem Auftrag zurechenbare Kosten | F3: Betrag in Euro (netto) | H3: Beispiele
H4: sonstige dem Auftrag zurechenbare Kosten (z. B. Reisekosten, Lizenzkosten, Interne Leistungsverrechnung etc.) | M4: Betrag in Euro (netto)
A5: sonstige dem Auftrag direkt zurechenbaren Kosten 1 | F5: 0
A6: sonstige dem Auftrag direkt zurechenbaren Kosten 2 | F6: 0 | H6: Reisekosten | M6: 150
A7: sonstige dem Auftrag direkt zurechenbaren Kosten 3 | F7: 0
A8: sonstige dem Auftrag direkt zurechenbaren Kosten 4 | F8: 0
A9: sonstige dem Auftrag direkt zurechenbaren Kosten 5 | F9: 0
A10: sonstige dem Auftrag direkt zurechenbaren Kosten 6 | F10: 0 | H10: zusätzlich nur für dieses Projekt gebuchte Räume
A11: sonstige dem Auftrag direkt zurechenbaren Kosten 7 | F11: 0 | H11: Raum z. B. Konferenzräume, Hörsaale, Abstellräume, usw. | K11: Fläche in qm | L11: Preis pro qm in Euro (netto) | M11: Gesamtkosten in Euro
A12: sonstige dem Auftrag direkt zurechenbaren Kosten 8 | F12: 0
A13: sonstige dem Auftrag direkt zurechenbaren Kosten 9 | F13: 0 | H13: Lagerhalle | K13: 85 | L13: 4 | M13: =L13*K13 -> 340
A14: sonstige dem Auftrag direkt zurechenbaren Kosten 10 | F14: 0
A15: sonstige dem Auftrag direkt zurechenbaren Kosten 11 | F15: 0
A16: sonstige dem Auftrag direkt zurechenbaren Kosten 12 | F16: 0 | H16: Rückfragen zu sonstigen Raumkosten bitte bei Referat II/1.1.3 Liegenschaftsverwaltung, An- und Vermietungen, Bau-, Raum- und Hausbewirtschaftungsangelegenheiten, Fernmelde- und Postwesen melden: Referat II 1.1.3 Haushaltsvollzug. E-Mail: Haushaltsvollzug@uni-bayreuth.de
A17: sonstige dem Auftrag direkt zurechenbaren Kosten 13 | F17: 0
A18: sonstige dem Auftrag direkt zurechenbaren Kosten 14 | F18: 0
A19: sonstige dem Auftrag direkt zurechenbaren Kosten 15 | F19: 0
A20: sonstige dem Auftrag direkt zurechenbaren Kosten | F20: =SUM(F5:F19) -> 0
A23: Reisekosten | F23: 0
A26: Nur grün hinterlegte Felder ausfüllen !
A27: sonstige Raumkosten | C27: Nur Räume die zusätzlich gebraucht werden. Bei den
C28: Personal- und Maschinenkosten sind die jeweils
C29: belegten Räume schon mit eingerechnet.
A30: Raum | D30: Fläche in qm | E30: Preis pro qm in Euro (netto) | F30: Gesamtkosten in Euro
A32: Raum 1 | E32: 0 | F32: =D32*E32 -> 0 | H32: Bitte alle Tabellenblätter ausfüllen:
A33: Raum 2 | E33: 0 | F33: 0 | H33: Personalkosten
A34: Raum 3 | E34: 0 | F34: 0 | H34: Gerätenutzungskosten
A35: Raum 4 | E35: 0 | F35: 0 | H35: Materialkosten
A36: Raum 5 | E36: 0 | F36: 0 | H36: Fremdleistungskosten
A37: Raum 6 | E37: 0 | F37: 0 | H37: sonstige direkt zurechenbare Kosten
A38: sonstige Raumkosten Gesamt | D38: in Euro | F38: =SUM(F32:F37) -> 0 | H38: Gesamtkosten
A42: sonstige dem Auftrag zurechenbaren Kosten inklusive sonstige Raumkosten | F42: =F20+F38 -> 0

Sheet Tabelle1 (hidden)

Sheet Tabelle2 (hidden)

Sheet Gesamtkalkulation
A1: Gesamtkalkulation - Auftragsforschung | K1: Sachkosten Gesamt | N1: =H11+H13+H15+H17+H21 -> 0
A2: in Euro | J2: AA
A3: Nur grün hinterlegte Felder ausfüllen ! | K3: Nur zur Information aufgeführt, bestehend aus:
A4: Personalkosten Stammpersonal LS /Beamte | F4: in Euro | H4: =Personalkosten!J50 -> 0 | J4: 873 | K4: - Gerätenutzungskosten Gesamt
J5: 873 | K5: - Materialkosten Gesamt
A6: PersonalkostenStammpersonal LS /Angestellte/HiWi | F6: in Euro | H6: =Personalkosten!L50 -> 0 | J6: 874 | K6: - Fremdleistungskosten Gesamt
A7: Personalkosten Einstellung (direkt auf Projekt) Gesamt (Wissenschaftler/Angestellte/HiWi) | F7: in Euro | H7: =Personalkosten!N50 -> 0 | J7: 812/822 | K7: - sonstigen direkt zurechenbaren Kosten Gesamt
A9: Forschungs- und Lehrzulage | F9: in Euro | H9: =Personalkosten!J54 -> 0 | J9: 830
A11: Gerätenutzungskosten Gesamt | F11: in Euro | H11: =Gerätenutzungskosten!I25 -> 0 | J11: 950
A13: direkte Materialkosten Gesamt | F13: in Euro | H13: =Materialkosten!G28 -> 0 | J13: 943
A15: Pauschale für Kleinmaterial (bis 350,00 EUR) | F15: in Euro | H15: =Materialkosten!G31 -> 0 | J15: 944
A17: Fremdleistungskosten Gesamt | F17: in Euro | H17: =Fremdleistungskosten!G28 -> 0 | J17: 933
A19: Reisekosten | F19: in Euro | H19: ='sonstige direkt zurechenbare Ko'!F23 -> 0 | J19: 846
A21: sonstige zurechenbare Kosten Gesamt | F21: in Euro | H21: ='sonstige direkt zurechenbare Ko'!F42 -> 0 | J21: 945
A24: Zwischensumme | F24: in Euro | H24: =H4+H7+H6+H9+H11+H13+H17+H21+H15+H19 -> 0
A27: Preissteigerungen während der Laufzeit inklusive Tariferhöhungen (mit Ja bestätigen, wenn während der Laufzeit zu erwarten) | F27: in Euro | H27: =IF(F28="Ja",H24*0.05,0) -> 0 | J27: 960 | K27: Bitte Eintrag mit "Ja" bestätigen und generell Preissteigerungen kalkulieren.
A29: Umlageanteil für Investitionen | F29: in Euro | H29: 0 | J29: 956
A31: Selbstkosten | F31: in Euro | H31: =H24+H27+H29 -> 0
A33: Gewinn in Prozent | H33: =H31*F33 -> 0 | J33: 960 Gewinn-rücklage | K33: Empfohlener Gewinn 3 % - 5 % Gewinne über 10 % müssen begründet werden
A34: Nettoüberschuss vorweg verfügbar (AA 961 Restmittelkostenstelle) | D34: 0.2 | F34: =H33*D34 -> 0
A35: Gewinn in Euro (alternativ) | F35: in Euro | J35: 955 Nettoüber-schuss vorweg verfügbar
A36: Nettoüberschuss vorweg verfügbar (AA 961 Restmittelkostenstelle) | D36: 0.2 | F36: =H35*D36 -> 0
A37: Nettosumme vor Overhead | H37: =H31+H33+H35 -> 0
A39: Overhead | F39: ='Daten zum Auftrag'!B47*100 -> 20 | G39: im Hundert | H39: =IF(H37<0,H37*0,H37/(100-F39)*F39) -> 0 | J39: 999
A41: Gesamt-Nettosumme | H41: =H39+H37 -> 0
A42: ='vereinfachte Gesamtkalkulat '!A72 -> Partner Inland (mit USt) 19% | F42: in Euro | H42: =H41*'vereinfachte Gesamtkalkulat '!C72 -> 0
A45: Brutto-Angebotspreis des Auftrags | F45: in Euro | H45: =H42+H41 -> 0
A49: Auf Dienstpflicht wird bestätigt:
A50: Mir ist bekannt, dass nach dem EU-Gemeinschaftsrahmen für staatliche Beihilfen für Forschung, Entwicklung und Innovation
A51: (Beihilferahmen) zur Vermeidung von Wettbewerbsverzerrungen eine Trennung von wirtschaftlichen und nichtwirtschaftlichen
A52: Tätigkeiten erforderlich ist und insoweit eine Quersubventionierung von wirtschaftlicher Tätigkeit aus staatlichen
A53: Haushaltsmitteln unzulässig ist.
A54: Mir ist bekannt, dass nach bayerischer Haushaltsdordnung, die Universität Bayreuth nicht in Vorleistung gehen soll.
A55: Daher sollen Zahlungen weitestgehends vor Beginn der Tätigkeit erfolgen. Nur in begründeten Einzelfällen ist ggfs. eine
A56: andere Regelung möglich.
A57: Das obige Projekt / die obige Kalkulation trägt dem Rechnung und wurde deshalb im Zuge der Angebotserstellung
A58: nach einer Vollkostenkalkulation bzw. nach marktüblichen Preisen kalkuliert.
A59: Ferner wird sichergestellt, dass alle Ausgaben für das Projekt nachweisbar / spezifizierbar sind. Entsprechende
A60: Aufzeichnungen werden geführt und für eine evtl. Prüfung durch die EU nach den einschlägigen Aufbewahrungs-
A61: bestimmungen aufbewahrt.
B64: __________________________________ | F64: _______________________________________
B65: Datum, Unterschrift des Projektleiters | F65: Datum, Unterschrift des Lehrstuhlinhabers
F66: (falls nicht gleichzeitig Projektleiter)

Sheet Tabelle3 (hidden)
